Cogmind - Beta 13 @@@ ROGUE MODE // 2024.04.06 @ 23:36:42 Player: Grewsome Result: Self-destructed Performance ------------- Evolutions (1) 500 Regions Visited (3) 600 Robots Destroyed (57) 285 Value Destroyed (1190) 1190 Prototype IDs (4) 80 Alien Tech Used (0) 0 Bonus (0) 0 TOTAL SCORE: 2655 Bonus ------- None Cogmind --------- Core Integrity 274/400 Matter 300/300 Energy 10/100 System Corruption 0% Temperature Cool (18) Movement Rolling (105) Ox1 Location -9/Materials Parts ------- > --- POWER (1) -------- (None) > --- PROPULSION (2) --- Wheel Compact Wheel > --- UTILITY (4) ------ High-capacity Storage Unit Structural Scanner Signal Interpreter Light Armor Plating > --- WEAPON (2) ------- Light EM Pulse Cannon > --- INVENTORY (20) --- Ion Engine Ion Engine Heat Sink Large Storage Unit Visual Processing Unit Improved Terrain Scanner Seismic Detector ECM Suite Utility Shielding Light Armor Plating Light Armor Plating Improved EM Shotgun Light EM Pulse Cannon Datajack Peak State ------------ > --- POWER ------------ Ion Engine > --- PROPULSION ------- Wheel Wheel > --- UTILITY ---------- Large Storage Unit Sensor Array > --- WEAPON ----------- Improved EM Shotgun Improved EM Shotgun > --- INVENTORY -------- Wheel Wheel Small Storage Unit Medium Storage Unit Structural Scanner Visual Processing Unit Improved Terrain Scanner Seismic Detector [Rating: 12] Favorites ----------- Power Ion Engine Engine Ion Engine Propulsion Wheel Wheel Wheel Utility Sensor Array Device Sensor Array Storage Large Storage Unit Processor Signal Interpreter Protection Light Armor Plating Weapon Light EM Pulse Cannon Energy Gun Improved EM Shotgun Energy Cannon Light EM Pulse Cannon Build | -11 -10 -10 -9 ------- Run | Yrd Mat Min Mat Slots Evolved 2 | . . . 2 Power . | . . . . Propulsion . | . . . . Utility 2 | . . . 2 Weapon . | . . . . Parts Attached 35 | 8 16 1 10 Power 4 | 1 2 . 1 Engine 4 | 1 2 . 1 Core . | . . . . Reactor . | . . . . Propulsion 9 | 2 5 1 1 Treads . | . . . . Leg . | . . . . Wheel 9 | 2 5 1 1 Hover . | . . . . Flight . | . . . . Utility 12 | 3 3 . 6 Device 6 | 2 2 . 2 Storage 4 | 1 1 . 2 Processor 1 | . . . 1 Hackware . | . . . . Protection 1 | . . . 1 Artifact . | . . . . Weapon 10 | 2 6 . 2 Energy Gun 6 | 2 4 . . Energy Cannon 4 | . 2 . 2 Ballistic Gun . | . . . . Ballistic Cannon . | . . . . Launcher . | . . . . Special Weapon . | . . . . Impact Weapon . | . . . . Slashing Weapon . | . . . . Piercing Weapon . | . . . . Special Melee Weapon . | . . . . Unidentified Prototypes 2 | . 1 . 1 Parts Lost 9 | . 2 2 5 Power 2 | . 1 . 1 Propulsion 2 | . . 1 1 Utility 1 | . . . 1 Weapon 4 | . 1 1 2 Highest Loss Streak 2 | . 1 2 2 To Critical Strikes . | . . . . Average Slot Usage (%) 92 | . 99 91 81 Engine 11 | . 14 14 2 Wheel 25 | . 28 27 20 Device 14 | . 14 14 14 Storage 13 | . 14 14 11 Processor 2 | . . . 11 Protection 1 | . . . 5 Energy Gun 5 | . 11 . . Energy Cannon 16 | . 15 20 15 Naked Turns . | . . . . Heaviest Build 55 | 15 34 34 55 Greatest Support 26 | 20 20 20 26 Greatest Overweight (x) 4 | . 1 2 4 Average Overweight (x) 1 | . . 1 1 Largest Inventory Capacity 20 | 8 15 15 20 Average Capacity 15 | 7 14 15 19 Most Carried 15 | 4 15 15 15 Average Carried 11 | 1 12 15 11 Final Capacity 20 | 8 15 15 20 Final Carried 15 | 4 15 15 14 Class Distribution -------------------- 92% | Mutant 7% | Skirmisher Dominant Class ---------------- Mutant | -10/Materials Mutant | -10/Mines Mutant | -9/Materials Resources | -11 -10 -10 -9 ----------- Run | Yrd Mat Min Mat Matter Collected 536 | 270 176 10 80 Remotely . | . . . . Salvage Created 2147 | 195 1017 355 580 Parts 131 | 23 61 18 29 Haulers Intercepted 3 | . 2 . 1 Recyclers Shooed 1 | . 1 . . Parts Field Recycled . | . . . . Retrieved Matter . | . . . . Parts Self-Destructed . | . . . . Prevented . | . . . . Kills | -11 -10 -10 -9 ------- Run | Yrd Mat Min Mat Combat Hostiles Destroyed 34 | . 17 8 9 Guns 7 | . 7 . . Cannons 18 | . 6 3 9 AOE 6 | . 3 3 . Classes Destroyed 10 | 3 5 . 2 Worker 4 | 1 1 1 1 Builder 1 | . . . 1 Tunneler 5 | 5 . . . Hauler 3 | . 2 . 1 Recycler 5 | 1 1 2 1 Operator 2 | . 2 . . Watcher 3 | . 3 . . Swarmer 10 | . 3 6 1 Grunt 22 | . 14 2 6 Sentry 2 | . . . 2 Best Kill Streak 6 | 4 6 4 3 Combat Bots Only 5 | . 5 3 3 Max Kills in Single Turn 3 | 1 2 3 1 Gunslinging 1 | . 1 . . Exploded 3 | . 1 3 . Melee . | . . . . Uniques/NPCs Destroyed . | . . . . Combat | -11 -10 -10 -9 -------- Run | Yrd Mat Min Mat Hostile Shots Fired 146 | . 53 31 62 Missed 49 | . 13 12 24 Damage Taken 1188 | . 486 216 486 Core 308 | . 101 81 126 Absorbed by Shields . | . . . . Core Remaining (%) 63 | 100 . 27 . Volleys Fired 137 | 26 49 26 36 Largest 2 | 2 2 1 1 Hottest 112 | 90 112 56 56 Shots Fired 169 | 39 67 27 36 Gun 75 | 39 36 . . Cannon 94 | . 31 27 36 Launcher . | . . . . Special . | . . . . Kinetic . | . . . . Thermal 38 | 26 12 . . Explosive . | . . . . Electromagnetic 131 | 13 55 27 36 Robot Hit Streak 12 | 3 12 7 11 Robot Miss Streak 4 | 4 4 3 2 Penetration Max . | . . . . Secondary Targets 2 | . 2 . . Max Gunslinging Chain 1 | . 1 . . Shots Hit Robots 110 | 16 48 19 27 Core Hits 63 | 7 30 11 15 Critical Kills . | . . . . Critical Parts Destroyed . | . . . . Critical Strikes 4 | 3 1 . . Burn 3 | 2 1 . . Corrupt 1 | 1 . . . Melee Attacks . | . . . . Impact . | . . . . Slashing . | . . . . Piercing . | . . . . Sneak Attacks . | . . . . Combat Hostiles . | . . . . Follow-up Attacks . | . . . . Damage Inflicted 2583 | 208 1234 528 613 Guns 657 | 208 449 . . Cannons 1557 | . 552 422 583 Explosions 349 | . 233 86 30 Melee . | . . . . Ramming 20 | . . 20 . Kinetic . | . . . . Thermal 573 | 100 357 86 30 Explosive . | . . . . Electromagnetic 1990 | 108 877 422 583 Impact . | . . . . Slashing . | . . . . Piercing . | . . . . Highest Corruption 2 | . 2 2 . Average Corruption 2 | . 2 2 . Corruption Purged . | . . . . Corruption Blocked . | . . . . Effects 15 | . 10 5 . Message Errors 5 | . 5 . . Matter Fused 4 | . 2 2 . Heat Flow Errors 1 | . . 1 . Data Loss (minor) 4 | . 3 1 . Misfires 1 | . . 1 . Overload Shots . | . . . . Overflow Damage 60 | . 42 18 . Projectiles 60 | . 42 18 . Explosions . | . . . . Melee . | . . . . Knockbacks . | . . . . Impact . | . . . . Kinetic . | . . . . Secondary . | . . . . Self-Inflicted Damage 25 | . 15 10 . Shots 1 | . 1 . . Rammed 2 | . . 2 . Targets Rammed 2 | . . 2 . Kicked . | . . . . Crushed . | . . . . Highest Temperature 340 | 120 340 151 46 Average Temperature 70 | 39 109 66 16 Received Heat Transfer 591 | . 258 81 252 Effects 1 | . 1 . . Damage (minor) 1 | . 1 . . Siege Activations . | . . . . Robots Corrupted 2 | . . 2 . Combat Hostiles 2 | . . 2 . Parts Fried 13 | . 5 3 5 Impact Corruptions . | . . . . Robots Melted 1 | . 1 . . Combat Hostiles 1 | . 1 . . Parts Melted 4 | 1 3 . . Heat Transferred 1138 | 444 644 50 . Parts Sabotaged . | . . . . Parts Stolen . | . . . . Parts Stripped . | . . . . Power Chain Reactions 6 | . 4 1 1 Alert | -11 -10 -10 -9 ------- Run | Yrd Mat Min Mat Peak Influence 264 | 35 264 230 178 Initial 44 | . 22 44 11 Average 110 | 15 136 114 91 Maximum Alert Level 1 | . 1 1 . Low Security (%) 79 | 100 64 79 100 Level 1 20 | . 35 20 . Level 2 . | . . . . Level 3 . | . . . . Level 4 . | . . . . Level 5 . | . . . . High Security . | . . . . Max Security . | . . . . Squads Dispatched 4 | . 3 . 1 Investigation 3 | . 2 . 1 Extermination . | . . . . Reinforcement 1 | . 1 . . Assault . | . . . . Garrison . | . . . . Intercept . | . . . . Searches Triggered . | . . . . Construction Impeded . | . . . . Haulers Reinforced . | . . . . Active Scanning Responses . | . . . . Cargo Convoy Interrupts . | . . . . Stealth | -11 -10 -10 -9 --------- Run | Yrd Mat Min Mat Distress Signals 3 | . 2 . 1 Communications Jammed . | . . . . Distress Signals . | . . . . Times Spotted 48 | . 22 6 20 Peak Tracking Total 7 | . 6 3 7 Tactical Retreats 2 | . . . 2 Traps | -11 -10 -10 -9 ------- Run | Yrd Mat Min Mat Traps Triggered 2 | . 2 . . Indirectly . | . . . . Trap Hack Attempts . | . . . . Triggered . | . . . . Disarmed . | . . . . Reprogrammed . | . . . . Reused . | . . . . Traps Extracted . | . . . . Installed . | . . . . Triggered . | . . . . Machines | -11 -10 -10 -9 ---------- Run | Yrd Mat Min Mat Machines Disabled 4 | . 4 . . Max in Single Turn 1 | . 1 . . Machines Repaired . | . . . . Machines Dismantled . | . . . . Machines Sabotaged . | . . . . Overloaded Fab Kills . | . . . . Hacking | -11 -10 -10 -9 --------- Run | Yrd Mat Min Mat Machines Accessed 8 | . 7 . 1 Terminals 8 | . 7 . 1 Fabricators . | . . . . Repair Stations . | . . . . Recycling Units . | . . . . Scanalyzers . | . . . . Garrison Access . | . . . . Total Hacks 19 | . 17 . 2 Successful 10 | . 10 . . Failed 9 | . 7 . 2 Catastrophic 1 | . . . 1 Database Lockouts . | . . . . Manual . | . . . . Terminals 19 | . 17 . 2 Fabricators . | . . . . Repair Stations . | . . . . Recycling Units . | . . . . Scanalyzers . | . . . . Garrison Access . | . . . . Terminal Hacks 10 | . 10 . . Prototype ID Bank 1 | . 1 . . Emergency Access Points 1 | . 1 . . Alert Level 2 | . 2 . . Unreport Threat 1 | . 1 . . Maintenance Status 1 | . 1 . . Transport Status 1 | . 1 . . Registered Components 1 | . 1 . . Zone Layout 2 | . 2 . . Fabricator Hacks . | . . . . Repair Station Hacks . | . . . . Recycling Unit Hacks . | . . . . Scanalyzer . | . . . . Garrison Access Hacks . | . . . . Unauthorized Hacks . | . . . . Terminals . | . . . . Fabricators . | . . . . Repair Stations . | . . . . Recycling Units . | . . . . Scanalyzers . | . . . . Garrison Access . | . . . . Data Cores Recovered 1 | . 1 . . Used 1 | . 1 . . Hacking Detections 5 | . 4 . 1 Full Trace Events 3 | . 2 . 1 Feedback Events . | . . . . Feedback Blocked . | . . . . Robot Schematics Acquired . | . . . . Robots Built . | . . . . Authchips . | . . . . Time . | . . . . Total Robot Build Rating . | . . . . Part Schematics Acquired . | . . . . Parts Built . | . . . . Authchips . | . . . . Time . | . . . . Total Part Build Rating . | . . . . Parts Repaired . | . . . . Time . | . . . . Parts Recycled . | . . . . Recycled Matter . | . . . . Retrieved Matter . | . . . . Retrieved Components . | . . . . Parts Scanalyzed . | . . . . Part Schematics Acquired . | . . . . Parts Damaged . | . . . . Bothacking | -11 -10 -10 -9 ------------ Run | Yrd Mat Min Mat Used RIF Installer . | . . . . Robots Hacked . | . . . . Non-combat . | . . . . Combat . | . . . . Robot Hacks Applied . | . . . . Relay Couplers Released . | . . . . Fabnet Peak Effective % . | . . . . Robots Rewired . | . . . . Allies Hacked . | . . . . Hacks Repelled . | . . . . Allies | -11 -10 -10 -9 -------- Run | Yrd Mat Min Mat Total Allies . | . . . . Largest Group . | . . . . Highest-Rated Group . | . . . . Highest-Rated Ally . | . . . . Total Orders . | . . . . Ally Attacks . | . . . . Total Damage . | . . . . Kills . | . . . . Allies Corrupted . | . . . . Allies Melted . | . . . . Intel | -11 -10 -10 -9 ------- Run | Yrd Mat Min Mat Robot Analysis Total . | . . . . Derelict Logs Recovered 1 | . . 1 . Drone Launches . | . . . . Drone Recoveries . | . . . . Exploration | -11 -10 -10 -9 ------------- Run | Yrd Mat Min Mat Turns Passed 2293 | 193 986 584 530 Spaces Moved 1764 | 139 792 508 325 Core 9 | 9 . . . Treads . | . . . . Legs . | . . . . Wheels 1755 | 130 792 508 325 Hover . | . . . . Flight . | . . . . Fastest Speed 50 | 50 80 95 95 Average Speed 95 | 78 93 95 108 Slowest Speed 140 | 80 95 110 140 Overloaded Moves . | . . . . Propulsion Burnouts . | . . . . Robots Hopped . | . . . . Cave-ins Triggered . | . . . . Exploration Rate (%) 44 | 4 86 66 22 Regions Visited 3 Branch Regions 1 Pre-discovered Areas 1 | . . 1 . Known Exits Taken . | . . . . Unknown Exits Taken 3 | 1 1 1 . Scrap Searched 1 | . . 1 . Spaces Dug . | . . . . Terrain Destroyed 6 | . 5 1 . Melee . | . . . . Projectile . | . . . . AOE 6 | . 5 1 . Terrain Rammed . | . . . . Walls Destroyed . | . . . . Machines Disabled . | . . . . Actions | -11 -10 -10 -9 --------- Run | Yrd Mat Min Mat Total 2199 | 183 969 580 467 Wait 209 | . 82 44 83 Move 1761 | 138 791 507 325 Hop . | . . . . Pick Up 39 | 11 20 . 8 Fast Attach 1 | . . 1 . Attach 24 | 7 8 . 9 Detach 4 | . 2 . 2 Swap 10 | 1 8 . 1 Drop 12 | . 9 . 3 Fire 137 | 26 49 26 36 Melee . | . . . . Ram 2 | . . 2 . Kick . | . . . . Crush . | . . . . Escape Stasis . | . . . . Rewire . | . . . . Trap . | . . . . Miscellaneous . | . . . . Route ------- -11/Scrapyard -10/Materials (discovered 3 exits: *Mat x2 / [*Min]) -10/Mines -9/Materials (discovered 1 exit: [*Sto]) History --------- Turn | Location | Event 3 | -11/Scrapyard | Discovered new exit (range 15) 194 | -11/Scrapyard | Entered Materials 306 | -10/Materials | Build established: Mutant 397 | -10/Materials | Discovered new exit (range 4) 520 | -10/Materials | Discovered new exit (range 12) 767 | -10/Materials | Discovered new exit (range 16) 1180 | -10/Materials | Entered Mines 1233 | -10/Mines | Found a hidden stash of uninstalled traps 1402 | -10/Mines | Learned location of Storage (-9) 1458 | -10/Mines | Core integrity fell below 50% 1558 | -10/Mines | Learned Materials emergency access door positions 1732 | -10/Mines | Discovered new exit (range 9) 1764 | -10/Mines | Entered Materials 1764 | -9/Materials | Evolved 2 slots: Utility x2 2224 | -9/Materials | Discovered new exit (range 7) 2294 | -9/Materials | Self-destructed Last Messages --------------- 02153_ U-05 Engineer lays Concrete. 02153_ K-01 Serf collects debris. 02154_ U-05 Engineer lays Concrete. 02179_ G-34 Mercenary destroyed. 02201_ Acquired Corrupted Ion Engine. 02209_ U-05 Engineer lays Concrete. 02216_ K-01 Serf collects debris. 02224_ EXIT=FOUND 02227_ Wheel destroyed. 02243_ Heat Sink fried. 02243_ Y-45 Defender destroyed. 02248_ Acquired Lgt. Armor Plating. 02269_ R-06 Scavenger destroyed. 02275_ Acquired Com. Wheel. 02277_ Acquired 10 matter. 02278_ Connecting with Terminal... 02278_ Current location identified: Materials 02278_ ALERT: Suspicious activity at Terminal M011. Dispatching Investigation squad. 02288_ S-10 Pest destroyed. Map ----- +----------------------------------------------------+ | ?????????????????????????????????????????????????? | | ???????????????????????????????????????????????? | | #### ##??????????????????????????????????????????? | | ###??????????????????????????????????+??????? | | ##+???????????????????????????????????????? | | ??????????????????????????????????????? | | ??????????????????????????????????????? | | " ^ ?????????????????????????????????????? | | " ?????????????????????????????????????? | | " ????????????????????????????+????????? | | ??????????? ???????????????????????? | | ??????????? ???????????????????????? | | ! #??????????????? ???????????????????????? | | #??????????????? ???????????????????????? | | #??????????????? ???????????????????????? | | #??????????????? "??????????????????????? | | #??????????????? T??????????????????????? | | ##??????????????? "??????????????????????? | | #???????????????? ??????????????????????? | | #???????????????? ??????????????????????? | | [#????????????????# ??????????????????????? | | ######%#????????????????# #??????????????????????? | | #??# #????????????????# #??????????????????????? | | #??# #????????????????#s#??????????????????????? | | #??# #????????????????#s#??????????????????????? | | #### ###???#######????#@#??????????????????????? | | ## ##### #????#s#??????????????????????? | | ## ! ###### #??????????????????????? | | ## < T% #??????????????????????? | | ## ! ########??????????????????????? | | ## ##### #?????????????????????????????? | | ##########???#######?????????????????????????????? | | ?????????????????????????????????????????????????? | | ?????????????????????????????????????????????????? | | | | | | | | | | | | | | | | | | | | | | | | | | | | | | | | | +----------------------------------------------------+ Best States ------------- Heat Dissipation 38 Energy Generation 10 Energy Capacity 250 Matter Stores 300 Matter Capacity 300 Sight Range 16 Robot Scan Range 14 Terrain Scan Range 16 Terrain Scan Density 10 Armor Coverage 150 Evasion (%) 44 Item Schematics ----------------- None Robot Schematics ------------------ None Fabricated ------------ Nothing Alien Tech Used ----------------- None Achievements -------------- Dynamic Key Challenges ------------ None Game ------ Seed SpectralShieldRigger Manual? 0 Play Time 00:29:58 Cumulative 8.4 hours Start 2024.04.06 @ 22:59:42 End 2024.04.06 @ 23:36:42 Sessions 1 Manual Loads 0 Difficulty Rogue Special Mode None Game No. 14 Rogue 11 Adventurer 3 Explorer 0 Win Type - Total 0 Types 0/0/0/0/0/0/0/0/0 Lore% 3 Gallery% 21 Achievement% 16 Wizard Run 0 Options --------- Layout 1 ASCII 0 Keyboard 0 Movement Mouse Keybinds 0 Fullscreen 1 Font 32/SmallcapsGlow Map View 50x35 Zoom Use 0% Tactical HUD 1 Map Filters NONE Filters NONE Steam 1 RUN: 47c93b9b-8b0a-4c70-8386-9281f5144c28